Cogmind - Beta 14 @@@ ROGUE MODE // 2025.03.30 @ 18:24:20 Player: Arc Result: Destroyed by D-53 Grenadier with Mini Grenade Launcher Performance ------------- Evolutions (0) 0 Regions Visited (3) 600 Robots Destroyed (31) 155 Value Destroyed (734) 734 Prototype IDs (23) 460 Alien Tech Used (0) 0 Bonus (280) 280 TOTAL SCORE: 2229 Bonus ------- Aligned with FarCom 300 Friendly Fire -20 Cogmind --------- Core Integrity 0/250 Matter 300/300 Energy 100/100 System Corruption 0% Temperature Cool (0) Movement Rolling (105) Ox1 Location -10/Exiles Parts ------- > --- POWER (1) -------- (None) > --- PROPULSION (2) --- Wheel Compact Wheel > --- UTILITY (2) ------ High-capacity Storage Unit Signal Interpreter > --- WEAPON (2) ------- (None) > --- INVENTORY (20) --- Ion Engine Light Nuclear Core Aluminum Leg Aluminum Leg Hover Unit Hover Unit Heat Sink Visual Processing Unit Experimental Sensor Array Trap Reconfigurator EM Pulse Gun Particle Gun Assault Rifle Makeshift Shrapnel Gun Light Cannon Light Cannon Light Cannon Light Cannon Flak Cannon Datajack Peak State ------------ > --- POWER ------------ Light Nuclear Core > --- PROPULSION ------- Wheel Compact Wheel > --- UTILITY ---------- High-capacity Storage Unit Signal Interpreter > --- WEAPON ----------- Light Cannon Light Cannon > --- INVENTORY -------- Ion Engine Light Nuclear Core Aluminum Leg Aluminum Leg Hover Unit Hover Unit Heat Sink Visual Processing Unit Experimental Sensor Array Trap Reconfigurator EM Pulse Gun Particle Gun Assault Rifle Makeshift Shrapnel Gun Light Cannon Light Cannon Light Cannon Light Cannon Flak Cannon Datajack [Rating: 13] Favorites ----------- Power Light Nuclear Core Engine Ion Engine Power Core Light Nuclear Core Propulsion Light Treads Treads Light Treads Leg Aluminum Leg Wheel Compact Wheel Hover Unit Hover Unit Utility High-capacity Storage Unit Storage High-capacity Storage Unit Processor Signal Interpreter Weapon Light Cannon Energy Gun Small Laser Ballistic Gun Assault Rifle Ballistic Cannon Light Cannon Build | -11 -10 -10 -10 ------- Run | Yrd Mat Min Exi Slots Evolved . | . . . . Power . | . . . . Propulsion . | . . . . Utility . | . . . . Weapon . | . . . . Parts Attached 26 | 6 17 3 . Power 4 | 1 2 1 . Engine 2 | 1 1 . . Core 2 | . 1 1 . Reactor . | . . . . Propulsion 12 | 2 8 2 . Treads 2 | . 2 . . Leg 2 | . 2 . . Wheel 6 | 2 2 2 . Hover 2 | . 2 . . Flight . | . . . . Utility 3 | 1 2 . . Device . | . . . . Storage 2 | 1 1 . . Processor 1 | . 1 . . Hackware . | . . . . Protection . | . . . . Artifact . | . . . . Weapon 7 | 2 5 . . Energy Gun 3 | 1 2 . . Energy Cannon . | . . . . Ballistic Gun 2 | 1 1 . . Ballistic Cannon 2 | . 2 . . Launcher . | . . . . Special Weapon . | . . . . Impact Weapon . | . . . . Slashing Weapon . | . . . . Piercing Weapon . | . . . . Special Melee Weapon . | . . . . Unidentified Prototypes . | . . . . Parts Lost 9 | . 4 2 3 Power 3 | . 1 1 1 Propulsion 2 | . 1 1 . Utility . | . . . . Weapon 4 | . 2 . 2 Highest Loss Streak 3 | . 3 1 3 To Critical Strikes . | . . . . Average Slot Usage (%) 98 | . 99 99 98 Engine 1 | . 2 . . Core 12 | . 11 13 14 Treads 17 | . 22 15 . Wheel 9 | . 4 11 28 Storage 14 | . 14 14 14 Processor 13 | . 13 14 14 Energy Gun 5 | . 11 . . Ballistic Gun 1 | . 3 . . Ballistic Cannon 20 | . 13 28 26 Peak Build Rating 13 | 6 11 12 13 Average Rating 10 | 4 10 11 12 On Entrance 7 | . 6 11 12 Naked Turns . | . . . . Heaviest Build 53 | 13 53 51 51 Greatest Support 40 | 32 40 40 26 Greatest Overweight (x) 2 | 1 2 2 1 Average Overweight (x) . | . 1 1 1 Largest Inventory Capacity 20 | 8 20 20 20 Average Capacity 19 | 6 19 20 20 Most Carried 20 | 6 20 20 20 Average Carried 18 | 4 17 19 19 Final Capacity 20 | 8 20 20 20 Final Carried 20 | 6 19 20 20 Class Distribution -------------------- 100% | Mutant Dominant Class ---------------- Mutant | -10/Materials Mutant | -10/Mines Mutant | -10/Exiles Resources | -11 -10 -10 -10 ----------- Run | Yrd Mat Min Exi Matter Collected 957 | 161 456 340 . Remotely . | . . . . Salvage Created 912 | . 525 387 . Parts 61 | . 39 22 . Haulers Intercepted . | . . . . Recyclers Shooed 2 | . 1 1 . Parts Field Recycled . | . . . . Retrieved Matter . | . . . . Parts Self-Destructed . | . . . . Prevented . | . . . . Kills | -11 -10 -10 -10 ------- Run | Yrd Mat Min Exi Combat Hostiles Destroyed 24 | . 13 11 . Guns 12 | . 12 . . Cannons 12 | . 1 11 . Classes Destroyed 7 | . 5 2 . Worker 1 | . 1 . . Tunneler 2 | . . 2 . Recycler 2 | . 1 1 . Watcher 3 | . 3 . . Swarmer 8 | . 5 3 . Grunt 15 | . 8 7 . Assembled 1 | . . 1 . Best Kill Streak 6 | . 6 4 . Combat Bots Only 4 | . 4 3 . Max Kills in Single Turn 2 | . 2 2 . Gunslinging . | . . . . Exploded . | . . . . Melee . | . . . . Uniques/NPCs Destroyed . | . . . . Combat | -11 -10 -10 -10 -------- Run | Yrd Mat Min Exi Hostile Shots Fired 162 | . 95 49 18 Missed 46 | . 27 15 4 Damage Taken 1351 | . 720 400 231 Core 260 | . 158 52 50 Absorbed by Shields . | . . . . Core Remaining (%) 100 | 100 . . . Volleys Fired 91 | . 51 40 . Largest 2 | . 2 2 . Hottest 80 | . 80 70 . Shots Fired 179 | . 99 80 . Gun 93 | . 93 . . Cannon 86 | . 6 80 . Launcher . | . . . . Special . | . . . . Kinetic 147 | . 67 80 . Thermal 32 | . 32 . . Explosive . | . . . . Electromagnetic . | . . . . Robot Hit Streak 9 | . 7 9 . Robot Miss Streak 4 | . 4 3 . Penetration Max . | . . . . Secondary Targets 3 | . 3 . . Max Gunslinging Chain 1 | . 1 . . Shots Hit Robots 92 | . 58 34 . Core Hits 43 | . 27 16 . Critical Kills . | . . . . Critical Parts Destroyed . | . . . . Critical Strikes 1 | . . 1 . Blast 1 | . . 1 . Melee Attacks . | . . . . Impact . | . . . . Slashing . | . . . . Piercing . | . . . . Sneak Attacks . | . . . . Combat Hostiles . | . . . . Follow-up Attacks . | . . . . Damage Inflicted 1411 | . 746 665 . Guns 710 | . 710 . . Cannons 688 | . 36 652 . Explosions . | . . . . Melee . | . . . . Ramming 13 | . . 13 . Kinetic 1199 | . 547 652 . Thermal 199 | . 199 . . Explosive . | . . . . Electromagnetic . | . . . . Impact . | . . . . Slashing . | . . . . Piercing . | . . . . Highest Corruption . | . . . . Average Corruption . | . . . . Corruption Purged . | . . . . Corruption Blocked . | . . . . Overload Shots . | . . . . Overflow Damage . | . . . . Projectiles . | . . . . Explosions . | . . . . Melee . | . . . . Knockbacks 10 | . 1 9 . Impact 1 | . . 1 . Kinetic 9 | . 1 8 . Secondary . | . . . . Self-Inflicted Damage 6 | . . 6 . Shots . | . . . . Rammed 1 | . . 1 . Targets Rammed 1 | . . 1 . Kicked . | . . . . Crushed . | . . . . Highest Temperature 177 | . 138 177 . Average Temperature 49 | . 48 49 . Received Heat Transfer 519 | . 348 171 . Siege Activations . | . . . . Robots Corrupted . | . . . . Combat Hostiles . | . . . . Parts Fried . | . . . . Impact Corruptions . | . . . . Robots Melted . | . . . . Combat Hostiles . | . . . . Parts Melted 3 | . 2 1 . Heat Transferred 450 | . 450 . . Parts Sabotaged . | . . . . Parts Stolen . | . . . . Parts Stripped . | . . . . Power Chain Reactions . | . . . . Alert | -11 -10 -10 -10 ------- Run | Yrd Mat Min Exi Peak Influence 246 | . 246 95 . Initial . | . . . . Average 59 | . 62 59 . Maximum Alert Level 1 | . 1 . . Low Security (%) 95 | 100 90 100 . Level 1 4 | . 9 . . Level 2 . | . . . . Level 3 . | . . . . Level 4 . | . . . . Level 5 . | . . . . High Security . | . . . . Max Security . | . . . . Squads Dispatched 3 | . 2 1 . Investigation 2 | . 1 1 . Extermination . | . . . . Reinforcement 1 | . 1 . . Assault . | . . . . Garrison . | . . . . Intercept . | . . . . Searches Triggered . | . . . . Construction Impeded . | . . . . Haulers Reinforced . | . . . . Active Scanning Responses . | . . . . Cargo Convoy Interrupts . | . . . . Stealth | -11 -10 -10 -10 --------- Run | Yrd Mat Min Exi Distress Signals 2 | . 2 . . Communications Jammed . | . . . . Distress Signals . | . . . . Times Spotted 37 | . 19 13 5 Peak Tracking Total 7 | . 6 2 7 Tactical Retreats 3 | . 1 1 1 Traps | -11 -10 -10 -10 ------- Run | Yrd Mat Min Exi Traps Triggered 1 | . 1 . . Indirectly . | . . . . Trap Hack Attempts . | . . . . Triggered . | . . . . Disarmed . | . . . . Reprogrammed . | . . . . Reused . | . . . . Traps Extracted . | . . . . Installed . | . . . . Triggered . | . . . . Machines | -11 -10 -10 -10 ---------- Run | Yrd Mat Min Exi Machines Disabled 3 | . . 3 . Max in Single Turn 1 | . . 1 . Machines Repaired . | . . . . Machines Dismantled . | . . . . Machines Sabotaged . | . . . . Overloaded Fab Kills . | . . . . Hacking | -11 -10 -10 -10 --------- Run | Yrd Mat Min Exi Machines Accessed 12 | . 7 1 4 Terminals 7 | . 7 . . Fabricators . | . . . . Repair Stations . | . . . . Recycling Units . | . . . . Scanalyzers . | . . . . Garrison Access . | . . . . Total Hacks 51 | . 23 1 27 Successful 38 | . 10 1 27 Failed 13 | . 13 . . Catastrophic 1 | . 1 . . Database Lockouts . | . . . . Manual 2 | . . . 2 Terminals 23 | . 23 . . Fabricators . | . . . . Repair Stations . | . . . . Recycling Units . | . . . . Scanalyzers . | . . . . Garrison Access . | . . . . Terminal Hacks 38 | . 10 1 27 Record 28 | . 2 . 26 Robot Analysis 1 | . 1 . . Open Door 1 | . . 1 . Emergency Access Points 1 | . 1 . . Alert Level 1 | . 1 . . Locate Traps 2 | . 2 . . Dispatch Records 1 | . 1 . . Patrol Status 1 | . 1 . . Investigation Status 1 | . 1 . . Derelict Proto ID Bank 1 | . . . 1 Fabricator Hacks . | . . . . Repair Station Hacks . | . . . . Recycling Unit Hacks . | . . . . Scanalyzer . | . . . . Garrison Access Hacks . | . . . . Unauthorized Hacks . | . . . . Terminals . | . . . . Fabricators . | . . . . Repair Stations . | . . . . Recycling Units . | . . . . Scanalyzers . | . . . . Garrison Access . | . . . . Data Cores Recovered . | . . . . Used . | . . . . Hacking Detections 7 | . 7 . . Full Trace Events 2 | . 2 . . Feedback Events . | . . . . Feedback Blocked . | . . . . Robot Schematics Acquired . | . . . . Robots Built . | . . . . Authchips . | . . . . Time . | . . . . Total Robot Build Rating . | . . . . Part Schematics Acquired . | . . . . Parts Built . | . . . . Authchips . | . . . . Time . | . . . . Total Part Build Rating . | . . . . Parts Repaired . | . . . . Time . | . . . . Parts Recycled . | . . . . Recycled Matter . | . . . . Retrieved Matter . | . . . . Retrieved Components . | . . . . Parts Scanalyzed . | . . . . Part Schematics Acquired . | . . . . Parts Damaged . | . . . . Bothacking | -11 -10 -10 -10 ------------ Run | Yrd Mat Min Exi Used RIF Installer . | . . . . Robots Hacked . | . . . . Non-combat . | . . . . Combat . | . . . . Robot Hacks Applied . | . . . . Relay Couplers Released . | . . . . Fabnet Peak Effective % . | . . . . Robots Rewired . | . . . . Allies Hacked . | . . . . Hacks Repelled . | . . . . Allies | -11 -10 -10 -10 -------- Run | Yrd Mat Min Exi Total Allies 3 | . . 3 . Largest Group 3 | . . 3 1 Highest-Rated Group 40 | . . 40 8 Highest-Rated Ally 16 | . . 16 8 Total Orders . | . . . . Ally Attacks 17 | . . 17 . Total Damage 99 | . . 99 . Kills 1 | . . 1 . Allies Corrupted . | . . . . Allies Melted . | . . . . Intel | -11 -10 -10 -10 ------- Run | Yrd Mat Min Exi Robot Analysis Total 1 | . 1 . . Derelict Logs Recovered 1 | . . 1 . Drone Launches . | . . . . Drone Recoveries . | . . . . Exploration | -11 -10 -10 -10 ------------- Run | Yrd Mat Min Exi Turns Passed 3789 | 91 1842 1487 369 Spaces Moved 2053 | 75 756 874 348 Core 10 | 10 . . . Treads 921 | . 610 311 . Legs . | . . . . Wheels 1122 | 65 146 563 348 Hover . | . . . . Flight . | . . . . Fastest Speed 50 | 50 100 105 105 Average Speed 166 | 97 215 153 105 Slowest Speed 320 | 100 240 320 105 Overloaded Moves . | . . . . Propulsion Burnouts . | . . . . Robots Hopped . | . . . . Cave-ins Triggered . | . . . . Exploration Rate (%) 61 | 6 93 98 49 Regions Visited 3 Branch Regions 2 Pre-discovered Areas . | . . . . Known Exits Taken 2 | . 1 1 . Unknown Exits Taken 1 | 1 . . . Scrap Searched 1 | . . 1 . Spaces Dug . | . . . . Terrain Destroyed . | . . . . Melee . | . . . . Projectile . | . . . . AOE . | . . . . Terrain Rammed . | . . . . Walls Destroyed . | . . . . Machines Disabled . | . . . . Actions | -11 -10 -10 -10 --------- Run | Yrd Mat Min Exi Total 2249 | 92 867 938 352 Wait 24 | . 10 12 2 Move 2050 | 74 755 873 348 Hop . | . . . . Pick Up 45 | 12 26 6 1 Fast Attach . | . . . . Attach 16 | 6 8 2 . Detach . | . . . . Swap 10 | . 9 1 . Drop 12 | . 8 3 1 Fire 91 | . 51 40 . Melee . | . . . . Ram 1 | . . 1 . Kick . | . . . . Crush . | . . . . Escape Stasis . | . . . . Rewire . | . . . . Trap . | . . . . Miscellaneous . | . . . . Route ------- -11/Scrapyard -10/Materials (discovered 5 exits: *Mat x3 / *Min x2) -10/Mines (discovered 4 exits: *Mat x2 / *Exi / *Sub) -10/Exiles (discovered 1 exit: *Min) History --------- Turn | Location | Event 18 | -11/Scrapyard | Discovered new exit (range 16) 92 | -11/Scrapyard | Entered Materials 320 | -10/Materials | Build established: Mutant 400 | -10/Materials | Core integrity fell below 50% 429 | -10/Materials | Lost 3 parts (1n2w) 486 | -10/Materials | Discovered new exit (range 16) 587 | -10/Materials | Identified exit to Materials 780 | -10/Materials | Discovered new exit (range 11) 811 | -10/Materials | Identified exit to Mines 924 | -10/Materials | Discovered exit to Mines (range 12) 1357 | -10/Materials | Discovered exit to Materials (range 7) 1753 | -10/Materials | Discovered exit to Materials (range 4) 1934 | -10/Materials | Entered Mines 2116 | -10/Mines | Deemed a non-threat by the Exiles lab entrance 2119 | -10/Mines | Discovered new exit (range 5) 2128 | -10/Mines | Identified exit to Exiles 2559 | -10/Mines | Learned Materials terminal intel 2608 | -10/Mines | Met a Derelict shopkeep closing up shop 2688 | -10/Mines | Discovered exit to Materials (range 9) 2691 | -10/Mines | Excavation squad dispatched 2691 | -10/Mines | A large section of the Mines collapsed 2812 | -10/Mines | Assisted by bots powering up and referring to "LRC-V3" 2915 | -10/Mines | Found a damaged Exp. Sensor Array with a note attached 2918 | -10/Mines | Found Prototype Device 2936 | -10/Mines | Discovered exit to Materials (range 10) 3002 | -10/Mines | Discovered new exit (range 6) 3009 | -10/Mines | Identified exit to Subcaves 3170 | -10/Mines | Core integrity fell below 20% 3285 | -10/Mines | A weapon hastily lodged in a ceiling crevice suddenly fell to the ground 3421 | -10/Mines | Entered Exiles 3421 | -10/Exiles | Accompanied by 1 ally 3447 | -10/Exiles | Discovered new exit (range 15) 3460 | -10/Exiles | Identified exit to Mines 3487 | -10/Exiles | Met 8R-AWN 3520 | -10/Exiles | Met EX-HEX 3573 | -10/Exiles | Met EX-BIN 3594 | -10/Exiles | Aligned with FarCom system 3595 | -10/Exiles | Given EX-Vault access code 3660 | -10/Exiles | Opened EX-Vault 3667 | -10/Exiles | Found Trap Reconfigurator 3690 | -10/Exiles | Warned to stay clear of 0b10 Research branches 3704 | -10/Exiles | Exiles lab attacked by MAIN.C 3790 | -10/Exiles | Destroyed by D-53 Grenadier with Mini Grenade Launcher Last Messages --------------- Machine disabled. Mercenary 1a destroyed. Lgt. Cannon destroyed. as-20113 destroyed. Machine disabled. as-10680 destroyed. as-95351 springs to life. as-44461 springs to life. as-27652 springs to life. as-63082 springs to life. as-82987 springs to life. as-63082 destroyed. as-44461 destroyed. Machine disabled. D-53 Grenadier suffers critical hit (Destroy). as-95351 destroyed. as-27652 destroyed. as-82987 destroyed. Lgt. Cannon destroyed. Lgt. Nuclear Core destroyed. Map ----- +----------------------------------------------------+ | ????????????????????????#" """ # ???????? | | ????????????????????????#" """""""""#????????? | | ???????????????????????##" ###########????????? | | ??????????????????????##"" #??????????????????? | | ????????????????????###"" #??????????????????? | | ??????????????????""""""" ##?????????????????? | | ?????????????????""" " "" ##???###########??? | | ???????????????" """ " #####"""""""""##?? | | ?????????????? " " " """ """"##? | | ????????????? "" " #? | | ????????????? " """#? | | ????????????? " "#? | | ????????????? " "## | | ????????????? ""# | | ?????????????? """""" "" | | ?????????????? ######""" | | ??????????????? ""#?????#####""" | | ??????????????? """???????????##""" | | ???????????? ??????????????????#"""" | | ???????????? ???????????????##"" | | ???????????? #??####???####"""" | | ??????????? ##aaa####""" | | ??????????? """" | | ?????????? | | ?????????? d | | ?????????? @ " | | ?????????? " "" "" | | ?????????? ""## ##""" " " ""# % | | ??????????? ""##?# ######""" """## | | ????????????? """"????# #????###""""### # | | ?????????????? ??????????# #??????######?? # ### | | ?????????????????????????! ??????????????#####?? | | ?????????????????????????" ????????????????????? | | ????????????????????????#" ???????????????????? | | ????????????????????????#!!""!???????????????????? | | ????????????????????????#######??????????????????? | | ?????????????????????????????????????????????????? | | ?????????????????????????????????????????????????? | | ?????????????????????????????????????????????????? | | ?????????????????????????????????????????????????? | | ?????????????????????????????????????????????????? | | ?????????????????????????????????????????????????? | | ?????????????????????????????????????????????????? | | ?????????????????????????????????????????????????? | | ?????????????????????????????????????????????????? | | ?????????????????????????????????????????????????? | | ?????????????????????????????????????????????????? | | ?????????????????????????????????????????????????? | | ?????????????????????????????????????????????????? | | ?????????????????????????????????????????????????? | +----------------------------------------------------+ Best States ------------- Heat Dissipation 25 Energy Generation 14 Energy Capacity 250 Matter Stores 300 Matter Capacity 300 Sight Range 16 Terrain Scan Density 10 Evasion (%) 40 Recoil Reduction 2 Item Schematics ----------------- None Robot Schematics ------------------ None Fabricated ------------ Nothing Alien Tech Used ----------------- None Achievements -------------- None Challenges ------------ None Game ------ Seed TiamatNullDetector Manual? 0 Play Time 00:38:40 Cumulative 13.3 hours Start 2025.03.30 @ 17:44:28 End 2025.03.30 @ 18:24:20 Sessions 1 Manual Loads 0 Difficulty Rogue Special Mode None Game No. 18 Rogue 18 Adventurer 0 Explorer 0 Win Type - Total 0 Types 0/0/0/0/0/0/0/0/0 Lore% 8 Gallery% 14 Achievement% 15 Wizard Run 0 Options --------- Layout 1 ASCII 0 Keyboard 0 Movement Numpad Keybinds 0 Fullscreen 1 Font 16/SmallcapsGlow Map View 55x38 Zoom Use 0% Tactical HUD 0 Map Filters NONE Filters NONE Steam 1 RUN: 83cf6e44-1b26-4932-9462-aa6318469a99